[Event "Israel-ch Semi-final 2022"]
[Site "Ramat Gan"]
[Date "2022.05.30"]
[Round "4.2"]
[White "Ben Ari, Yannay"]
[Black "Yaniv, Ori"]
[Result "1-0"]
[ECO "E49"]
[WhiteElo "2409"]
[BlackElo "2143"]
[Annotator "TA"]
[PlyCount "77"]
[EventDate "2022.05.09"]
[EventType "swiss"]
[EventCountry "ISR"]
[SourceTitle "playchess.com"]
[Source "ChessBase"]
[SourceQuality "1"]
[TimeControl "40/5400+30:1800+30"]

{[%evp 20,77,8,-5,47,38,53,61,52,39,82,85,216,213,204,210,200,175,191,190,186,65,99,113,97,76,68,61,52,39,157,152,127,143,215,237,541,549,539,519,822,535,531,505,517,533,506,518,525,502,503,510,615,603,605,575,613,614,633,622]} 1. d4 {[%emt 0:00:05]} Nf6 {[%emt 0:00:08]} 2. c4 {[%emt 0:00:18]} e6 {[%emt 0:00:22]} 3. Nc3 {[%emt 0:00:02]} Bb4 {[%emt 0:00:08]} 4. e3 {[%emt 0:00:04]} d5 {[%emt 0:00:45]} 5. Bd3 {[%emt 0:00:36]} dxc4 {[%emt 0:02:10]} 6. Bxc4 {[%emt 0:00:41]} O-O {[%emt 0:00:11]} 7. a3 {[%emt 0:12:09]} Bxc3+ {[%emt 0:01:42]} 8. bxc3 {[%emt 0:00:02]} c5 {[%emt 0:00:12]} 9. Bd3 {[%emt 0:01:27]} Qc7 {[%emt 0:20:51]} 10. Ne2 {[%emt 0:03:48]} e5 {[%emt 0:05:23] 10...Nc6 is more fashionable.} 11. O-O {[%emt 0:13:39]} b6 {[%emt 0:07:19] E49: Nimzo-Indian: Rubinstein: 5 Bd3 d5 6 a3 Bxc3+ 7 bxc3.} ({Black should try} 11... Nc6 $11) 12. e4 $14 {[%emt 0:09:02][%cal Be3e4,Be4e5][%mdl 32]} cxd4 {[%emt 0:23:00]} 13. cxd4 {[%emt 0:00:03]} exd4 {[%emt 0:00:46] White is slightly better.} 14. Bf4 {[%emt 0:13:00][%cal Bc1f4,Bf4g3,Bg3h4,Bh4g5][%mdl 32] [#]} Qe7 $146 {[%emt 0:02:16]} ({Predecessor:} 14... Qd7 15. a4 Ba6 16. a5 b5 17. Qb1 h6 18. Rd1 Nc6 19. Bxb5 Bxb5 20. Qxb5 Rfd8 {0-1 (55) Cvitan,E (2284)-Dzagnidze,N (2525) Struga 2021}) 15. Nxd4 {[%emt 0:10:49] Black must now prevent Rc1.} Rd8 {[%emt 0:03:11] [#]} (15... Na6 $16) 16. e5 $1 $18 {[%emt 0:02:25]} Nd5 {[%emt 0:02:35]} (16... Rxd4 $2 17. exf6 Qxf6 {[#]} 18. Re1 $1 $18) 17. Bg3 {[%emt 0:04:57]} g6 {[%emt 0:07:15]} 18. Re1 {[%emt 0:03:25]} Be6 {[%emt 0:08:55]} 19. Qf3 {[%emt 0:00:30]} a6 {[%emt 0:02:10]} 20. Re4 {[%emt 0:14:05]} ({Better is} 20. Bc4 $18) 20... Qd7 {[%emt 0:02:44]} 21. Bh4 {[%emt 0:07:38] White is more active.} Rc8 {[%emt 0:02:55]} 22. Nxe6 {[%emt 0:00:28]} fxe6 {[%emt 0:01:34]} 23. Rg4 {[%emt 0:00:39][%cal Od3g6] aiming for Bxg6!} Qf7 {[%emt 0:02:38]} 24. Qg3 {[%emt 0:01:57][%cal Rd3g6] Hoping for Bxg6!} Kg7 {[%emt 0:00:11] White leaves nothing to chance now.} (24... Nd7 $14) 25. Bg5 $16 {[%emt 0:00:28] Strongly threatening Qh3.} Nd7 {[%emt 0:01:23]} 26. h4 {[%emt 0:00:39][%cal Oh4h5]} Rc3 {[%emt 0:01:58]} (26... Kh8 $16 {might work better.}) 27. h5 $18 {[%emt 0:00:01]} Kg8 $2 {[%emt 0:00:33]} (27... Rxd3 {is more resistant.} 28. Qxd3 Qf5 29. Qxf5 gxf5) 28. hxg6 {[%emt 0:00:31] White is clearly winning.} hxg6 {[%emt 0:00:12][%cal Oc3d3]} 29. Rd1 {[%emt 0:00:57] And now Be3 would win.} Nc5 {[%emt 0:00:52]} (29... Nf8 $142 30. Bh6 Ne7 31. Bxg6 Rxg3 32. Bxf7+ Kxf7 33. Rxg3 Nf5) 30. Bh6 {[%emt 0:00:06]} Ne7 {[%emt 0:00:31]} 31. Bxg6 {[%emt 0:00:44] A strong pair of Bishops.} Rxg3 {[%emt 0:00:22]} 32. Bxf7+ {[%emt 0:00:04]} Kxf7 {[%emt 0:00:07]} 33. Rxg3 {[%emt 0:00:22]} Nf5 {[%emt 0:00:26] Against Rg7+} 34. Rf3 {[%emt 0:00:01]} Kg6 {[%emt 0:00:56]} 35. Be3 {[%emt 0:00:12]} Ne4 {[%emt 0:00:17]} 36. Bxb6 {[%emt 0:00:27]} Rb8 {[%emt 0:00:35]} 37. Bc7 {[%emt 0:01:58]} Rb2 {[%emt 0:00:22]} 38. Ba5 {[%emt 0:00:37]} Kg5 {[%emt 0:01:03]} 39. Re1 {[%emt 0:00:17] Weighted Error Value: White=0.21 (precise) /Black=0.41} 1-0

[Event "Israel-ch Semi-final 2022"]
[Site "Ramat Gan"]
[Date "2022.05.30"]
[Round "4.3"]
[White "Sivan, Yaacov"]
[Black "Aharonovich, Itamar"]
[Result "0-1"]
[ECO "A36"]
[WhiteElo "2306"]
[BlackElo "2324"]
[Annotator "TA"]
[PlyCount "97"]
[EventDate "2022.05.09"]
[EventType "swiss"]
[EventCountry "ISR"]
[SourceTitle "playchess.com"]
[Source "ChessBase"]
[SourceQuality "1"]
[TimeControl "40/5400+30:1800+30"]

{[%evp 19,97,0,0,-57,-48,-90,-91,-81,-91,-108,-107,-109,-105,-114,-89,-85,-102,-92,-86,-80,-81,-92,-83,-92,-59,-138,-156,-142,-147,-248,-132,-122,-132,-210,-201,-224,-223,-226,-180,-270,-250,-311,-317,-320,-309,-318,-310,-339,-289,-270,-268,-347,-333,-655,-655,-645,-645,-730,-719,-1320,-1318,-1041,-486,-469,-388,-1014,-926,-568,-357,-1591,-1721,-4627,-4570,-29970,-29974,-29971,-29974,-29974,-29973,-29990]} 1. e4 {[%emt 0:04:05]} c5 {[%emt 0:00:18]} 2. c4 {[%emt 0:00:19]} Nc6 {[%emt 0:00:23]} 3. g3 {[%emt 0:00:17]} g6 {[%emt 0:00:35]} 4. Bg2 {[%emt 0:00:16]} Bg7 {[%emt 0:00:06]} 5. Ne2 {[%emt 0:00:46]} d6 {[%emt 0:01:49]} 6. d3 {[%emt 0:01:40]} Rb8 {[%emt 0:02:54]} 7. Nbc3 {[%emt 0:00:49]} a6 {[%emt 0:00:12]} 8. a4 {[%emt 0:06:04]} Nf6 {[%emt 0:05:00]} 9. O-O {[%emt 0:02:18]} O-O {[%emt 0:03:13]} 10. h3 {[%emt 0:01:56]} Ne8 {[%emt 0:00:50]} 11. g4 {[%emt 0:04:50] A36: Symmetrical English vs ...g6: 4 Bg2 Bg7.} ({White should play} 11. Be3 $11) 11... Nc7 $15 {[%emt 0:00:31] [#]} 12. Nd5 $146 {[%emt 0:08:25]} ({Predecessor:} 12. Ng3 b5 13. axb5 axb5 14. Nd5 bxc4 15. dxc4 Bxb2 16. Bxb2 Rxb2 17. Qc1 Rb3 18. Qh6 Ne5 {½-½ (28) Sorsa,N (2210)-Kosmo,S (2261) Finland 2020}) 12... b5 {[%emt 0:02:04]} 13. axb5 {[%emt 0:14:26] Black is better.} axb5 {[%emt 0:00:12]} 14. Ne3 {[%emt 0:00:36]} bxc4 {[%emt 0:09:29] Black is more active.} 15. Nxc4 {[%emt 0:00:19]} Be6 {[%emt 0:00:15]} 16. Nc3 {[%emt 0:05:20]} Bxc4 {[%emt 0:11:06]} 17. dxc4 {[%emt 0:00:07]} Ne6 {[%emt 0:00:38]} 18. f4 {[%emt 0:08:29][%cal Oe4e5,Bf2f4,Bf4f5][%mdl 32]} Na5 {[%emt 0:08:31]} 19. Ra4 {[%emt 0:02:50][%cal Oe4e5]} Nd4 {[%emt 0:04:34]} 20. e5 {[%emt 0:03:58]} dxe5 {[%emt 0:04:14]} 21. f5 {[%emt 0:00:21]} Rb4 {[%emt 0:07:03]} 22. Rxb4 {[%emt 0:16:39]} (22. Bd5 $1 $15) 22... cxb4 $17 {[%emt 0:00:07]} 23. Nd5 {[%emt 0:00:06]} Nxc4 {[%emt 0:02:48] Pair of Knights!} 24. Nxb4 {[%emt 0:04:24]} (24. b3 $17 Nb6 25. Nxb4) 24... Nd6 {[%emt 0:08:16]} (24... gxf5 $19 {And now ...e4 would win.} 25. gxf5 Nd6) 25. fxg6 {[%emt 0:04:08]} hxg6 {[%emt 0:01:08]} ({Stronger than} 25... fxg6 26. Rxf8+ Kxf8 27. Be3 $15) 26. Nd5 {[%emt 0:00:08]} (26. Bg5 $17 {was called for.}) 26... e6 $19 {[%emt 0:00:46]} 27. Nc3 {[%emt 0:00:55]} f5 {[%emt 0:03:54]} 28. gxf5 {[%emt 0:00:10]} gxf5 {[%emt 0:00:15]} 29. Kh1 {[%emt 0:01:03]} (29. Ne2 {might work better.}) 29... Qh4 {[%emt 0:01:50]} 30. Qe1 {[%emt 0:04:22]} Qxe1 {[%emt 0:01:52]} 31. Rxe1 {[%emt 0:00:01]} Rb8 {[%emt 0:00:38]} 32. Na4 {[%emt 0:02:25]} e4 {[%emt 0:02:37][%cal Be5e4,Be4e3][%mdl 32]} 33. Bf4 {[%emt 0:01:28]} Rb4 {[%emt 0:04:41]} 34. Bxd6 {[%emt 0:00:37]} Rxa4 {[%emt 0:00:02]} 35. b4 {[%emt 0:00:57]} Bf8 {[%emt 0:01:50]} 36. Bxf8 {[%emt 0:01:09] [#]} (36. Be5 Rxb4 37. Ra1) 36... Kxf8 {[%emt 0:00:01][%mdl 4096] Endgame KRB-KRN} 37. Rb1 {[%emt 0:00:09]} e3 {[%emt 0:04:44]} 38. Kg1 {[%emt 0:01:47]} f4 {[%emt 0:01:17]} 39. Kf1 {[%emt 0:00:38]} f3 {[%emt 0:01:50]} 40. Bxf3 {[%emt 0:00:32]} Nxf3 {[%emt 0:00:02] KRN-KR} 41. Ke2 {[%emt 0:30:40]} Nd2 {[%emt 0:30:42]} 42. Rb2 {[%emt 0:00:00]} (42. Rg1) 42... Nc4 {[%emt 0:00:00]} 43. Rb1 {[%emt 0:00:00]} Ra3 {[%emt 0:00:00] [#] Hoping for ...Nd6.} 44. h4 $2 {[%emt 0:00:00]} (44. b5) 44... Nb6 {[%emt 0:00:00] White must now prevent ...Nd5.} 45. h5 {[%emt 0:00:00]} Nd5 {[%emt 0:00:00] ( -> ...Nc3+)} 46. Kf3 {[%emt 0:00:00]} e2+ {[%emt 0:00:00] Black mates.} 47. Kf2 {[%emt 0:00:00]} Rh3 {[%emt 0:00:00]} 48. b5 {[%emt 0:00:00]} Rh2+ {[%emt 0:00:00]} 49. Ke1 {[%emt 0:04:31] Weighted Error Value: White=1.07/Black=0.15 (very precise)} 0-1

[Event "Israel-ch Semi-final 2022"]
[Site "Ramat Gan"]
[Date "2022.05.30"]
[Round "4.4"]
[White "Levin, Guy"]
[Black "Vaisman, Felix"]
[Result "0-1"]
[ECO "A10"]
[WhiteElo "2354"]
[BlackElo "2096"]
[Annotator "TA"]
[PlyCount "126"]
[EventDate "2022.05.09"]
[EventType "swiss"]
[EventCountry "ISR"]
[SourceTitle "playchess.com"]
[Source "ChessBase"]
[SourceQuality "1"]
[TimeControl "40/5400+30:1800+30"]

{[%evp 9,126,19,23,15,22,20,21,29,24,6,19,17,18,10,16,10,53,54,112,110,108,0,0,0,0,0,11,14,44,31,33,48,45,47,39,47,32,6,15,6,12,0,87,92,86,90,97,91,99,83,115,8,77,0,0,54,32,0,5,0,0,0,0,0,0,0,0,0,0,0,0,0,0,-8,0,0,0,0,0,0,0,0,0,0,0,0,0,0,0,0,0,0,0,-118,-142,-120,-99,-435,-435,-4622,-3161,-29973,-29972,-29975,-29976,-29975,-29976,-29976,-29977,-29979,-29980,-29984,-29979,-29979,-29980,-29980,-29979,-5057,-5057]} 1. Nf3 {[%emt 0:00:03]} f5 {[%emt 0:00:25]} 2. c4 {[%emt 0:00:40]} Nf6 {[%emt 0:00:17]} 3. Nc3 {[%emt 0:00:06]} e6 {[%emt 0:01:00]} 4. e3 {[%emt 0:00:41]} Bb4 {[%emt 0:03:08]} 5. Qc2 {[%emt 0:00:18]} O-O {[%emt 0:01:34]} 6. a3 {[%emt 0:02:36] A10: English Opening: Unusual Replies for Black.} Bxc3 {[%emt 0:00:53]} 7. Qxc3 {[%emt 0:00:05] [#]} b6 $146 {[%emt 0:00:39]} ({Predecessor:} 7... d6 8. d4 a5 9. Bd3 Nbd7 10. b3 Qe8 11. Qc2 c6 12. Bd2 d5 13. cxd5 cxd5 {1-0 (34) Terekhin,A (2315)-Liang,V (2116) Perm 2008}) 8. b4 {[%emt 0:00:14] The position is equal.} Ne4 {[%emt 0:02:47]} 9. Qc2 {[%emt 0:00:37]} Bb7 {[%emt 0:02:04]} 10. Be2 {[%emt 0:02:03]} Ng5 {[%emt 0:08:12]} 11. Bb2 {[%emt 0:03:00]} d6 {[%emt 0:07:13]} 12. Qc3 {[%emt 0:06:56][%csl Gb2][%cal Rc3g7]} e5 {[%emt 0:02:15]} 13. d4 $1 {[%emt 0:01:20]} Nxf3+ {[%emt 0:14:18]} (13... exd4 $14 14. Nxd4 (14. Qxd4 Ne6 $11) 14... Ne4) 14. gxf3 $16 {[%emt 0:06:10]} Nd7 {[%emt 0:05:04]} 15. dxe5 {[%emt 0:01:38]} (15. Rg1 $16) 15... Nxe5 $11 {[%emt 0:00:46]} 16. f4 {[%emt 0:06:53]} Bxh1 {[%emt 0:05:27]} 17. O-O-O $1 {[%emt 0:04:12]} Qe7 {[%emt 0:06:21][%cal Oh1f3] aiming for ...Bf3!} 18. fxe5 {[%emt 0:04:31]} Bb7 {[%emt 0:01:20]} 19. exd6 {[%emt 0:13:41]} cxd6 {[%emt 0:00:09]} 20. Rg1 $36 {[%emt 0:00:04][%mdl 2048] White has some pressure.} Rf7 {[%emt 0:03:38]} 21. Bh5 {[%emt 0:00:08]} Raf8 {[%emt 0:00:25]} 22. Bxf7+ {[%emt 0:00:57]} Rxf7 {[%emt 0:00:04]} 23. h4 {[%emt 0:00:27]} Bf3 {[%emt 0:03:02]} 24. Qd4 {[%emt 0:06:31]} Bg4 {[%emt 0:06:36]} 25. e4 {[%emt 0:04:13]} Qxh4 {[%emt 0:03:07]} (25... h5 $11 {remains equal.}) 26. f3 $1 $16 {[%emt 0:00:22]} Qh6+ {[%emt 0:00:45]} 27. Kb1 {[%emt 0:00:01]} Bxf3 {[%emt 0:01:40]} 28. exf5 {[%emt 0:00:02]} Kf8 {[%emt 0:03:37]} 29. Ka1 $1 {[%emt 0:06:52]} Bc6 {[%emt 0:08:59] [#]} 30. Qd3 {[%emt 0:16:53]} ({White should try} 30. c5 $1 $16) 30... Bd7 {[%emt 0:01:29]} (30... Qf4 $11 {keeps the balance.}) 31. Qd5 {[%emt 0:01:39]} (31. Qe4 $5 {[%cal Rg1e1]}) 31... Qe3 $1 {[%emt 0:06:53]} 32. Qxd6+ {[%emt 0:00:55]} Kg8 {[%emt 0:00:33]} 33. Qb8+ {[%emt 0:00:45]} (33. Qh2 $5 {[%cal Rf5f6]}) 33... Be8 {[%emt 0:00:13]} 34. Rg3 {[%emt 0:00:38]} Qe1+ {[%emt 0:00:19]} 35. Ka2 {[%emt 0:00:02]} Qe4 {[%emt 0:00:45] Inhibits Qf4.} ({Much less strong is} 35... Qe2 36. Qf4 Qe7 37. Re3 $16) 36. Qc8 {[%emt 0:00:17]} Qc6 {[%emt 0:00:18]} 37. Qxc6 {[%emt 0:08:37]} Bxc6 $11 {[%emt 0:00:01][%mdl 4096] Endgame KRB-KRB} 38. f6 {[%emt 0:00:01][%cal Rf6g7]} g6 {[%emt 0:01:11]} 39. Kb3 {[%emt 0:00:19]} Bd7 {[%emt 0:00:28]} 40. b5 {[%emt 0:01:07]} Bf5 {[%emt 0:00:45]} 41. Kb4 {[%emt 0:31:30]} Rd7 {[%emt 0:03:19]} 42. a4 {[%emt 0:00:00]} h5 {[%emt 0:03:54][%cal Bh7h5,Bh5h4][%mdl 32]} 43. a5 {[%emt 0:00:00]} h4 {[%emt 0:00:21]} 44. Re3 {[%emt 0:00:00]} Kf7 {[%emt 0:01:50]} 45. c5 {[%emt 0:00:00]} bxc5+ {[%emt 0:00:52]} 46. Kxc5 {[%emt 0:00:00]} g5 {[%emt 0:04:10]} 47. b6 {[%emt 0:00:00]} axb6+ {[%emt 0:00:04]} 48. axb6 {[%emt 0:00:00]} Be6 {[%emt 0:03:47]} 49. Kc6 {[%emt 0:00:00]} h3 $1 {[%emt 0:01:40] Hoping for ...h2.} 50. Re2 {[%emt 0:00:00]} g4 {[%emt 0:01:27] Threatens to win with ...g3.} 51. Be5 {[%emt 0:00:00] [#]} (51. b7 $11 {was the only way to keep the balance.} Rxb7 52. Kxb7) 51... Rd3 $1 $17 {[%emt 0:02:15] Strongly threatening ...Bd5+.} 52. Kc5 {[%emt 0:01:32] Black must now prevent b7.} Bd5 {[%emt 0:07:25] ...Bb7 is the strong threat.} 53. Bb2 $2 {[%emt 0:06:24][%mdl 8192] White does not recover from this.} (53. Rc2 $17 {is tougher.}) 53... g3 $19 {[%emt 0:02:25]} 54. Re7+ {[%emt 0:00:19]} (54. Be5 $142 h2 55. Rxh2 gxh2 56. Bxh2) 54... Kf8 {[%emt 0:00:22] ( -> ...g2)} 55. b7 {[%emt 0:00:43] [#]} Bxb7 $1 {[%emt 0:00:15][%mdl 512]} 56. Rxb7 {[%emt 0:00:04] KRB-KR} g2 {[%emt 0:00:16]} 57. Rb8+ {[%emt 0:00:07]} Kf7 {[%emt 0:00:36]} 58. Rb7+ {[%emt 0:00:01]} Ke6 {[%emt 0:00:40]} 59. Re7+ {[%emt 0:02:14]} Kf5 {[%emt 0:00:36]} 60. Kc4 {[%emt 0:00:30] [#]} g1=Q $1 {[%emt 0:02:12]} 61. Kxd3 {[%emt 0:00:01]} Qf1+ {[%emt 0:00:39]} 62. Kc2 {[%emt 0:00:30]} h2 {[%emt 0:00:47]} 63. f7 {[%emt 0:00:02]} Kg6 {[%emt 0:00:29] Weighted Error Value: White=0.37/Black=0.08 (flawless)} 0-1

[Event "Israel-ch Semi-final 2022"]
[Site "Ramat Gan"]
[Date "2022.05.30"]
[Round "4.5"]
[White "Bin-Nun, Peleg"]
[Black "Yaniv, Yuval"]
[Result "0-1"]
[ECO "B46"]
[WhiteElo "2056"]
[BlackElo "2301"]
[Annotator "TA"]
[PlyCount "64"]
[EventDate "2022.05.09"]
[EventType "swiss"]
[EventCountry "ISR"]
[SourceTitle "playchess.com"]
[Source "ChessBase"]
[SourceQuality "1"]
[TimeControl "40/5400+30:1800+30"]

{[%evp 18,64,6,0,0,-9,8,23,22,-31,-15,-25,-11,-8,-8,-10,26,12,37,33,25,33,36,-39,-55,-45,-44,-97,-17,-86,-71,-108,-98,-123,-116,-120,-118,-222,-218,-206,-214,-381,-385,-347,-366,-377,-379,-29994,-29995]} 1. e4 {[%emt 0:00:22]} c5 {[%emt 0:00:23]} 2. Nf3 {[%emt 0:00:04]} e6 {[%emt 0:00:17]} 3. d4 {[%emt 0:04:02]} cxd4 {[%emt 0:00:36]} 4. Nxd4 {[%emt 0:00:02]} a6 {[%emt 0:00:09]} 5. Nc3 {[%emt 0:03:11]} Qc7 {[%emt 0:00:16]} 6. Bd3 {[%emt 0:02:09]} Nc6 {[%emt 0:02:37]} 7. Nxc6 {[%emt 0:00:21]} bxc6 {[%emt 0:00:58]} 8. O-O {[%emt 0:01:02]} Nf6 {[%emt 0:00:32]} 9. f4 {[%emt 0:04:30]} d5 {[%emt 0:00:22]} 10. Kh1 {[%emt 0:08:19]} Be7 {[%emt 0:00:28] B46: Sicilian: Taimanov: 5 Nc3 a6.} 11. Bd2 {[%emt 0:06:15]} c5 {[%emt 0:01:48]} 12. e5 {[%emt 0:03:15]} Nd7 {[%emt 0:00:10] White has an edge.} 13. Qg4 {[%emt 0:00:41]} (13. f5 $11 Nxe5 14. Bf4) 13... g6 {[%emt 0:01:21]} 14. Rae1 {[%emt 0:00:40][%cal Of4f5] Strongly threatening f5!} Bb7 {[%emt 0:17:51]} 15. b3 {[%emt 0:05:03][%cal Bb2b3,Bb3c4][%mdl 32]} h5 {[%emt 0:01:37]} 16. Qh3 {[%emt 0:14:51] [#]} O-O-O $146 {[%emt 0:01:47]} ({Predecessor:} 16... c4 17. bxc4 dxc4 18. Be4 Nc5 19. Bf3 Rb8 20. Rb1 Bxf3 21. Qxf3 O-O {1-0 (43) Noshin,A (1722)-Hamid,R (1941) Dhaka 2019}) 17. Na4 {[%emt 0:04:44]} Kb8 {[%emt 0:05:40]} (17... h4 {is interesting.} 18. Be2 Rdg8 19. Bf3 Rh7) 18. c4 {[%emt 0:02:38]} dxc4 {[%emt 0:05:01]} 19. bxc4 {[%emt 0:01:01]} Ka7 {[%emt 0:00:23]} 20. Bc1 {[%emt 0:16:28]} ({White should try} 20. Re2 $14) 20... Nb8 {[%emt 0:03:11][%cal Bd7b8,Bb8c6,Bc6b4,Bb4d3][%mdl 32]} 21. Nc3 {[%emt 0:01:50]} Nc6 {[%emt 0:01:15]} 22. Be4 {[%emt 0:00:48] [#]} ({White should play} 22. Ne4 $15) 22... Rd4 {[%emt 0:04:10]} (22... Na5 $1 $17) 23. Be3 {[%emt 0:04:20]} (23. Nd5 $1 $11 exd5 24. cxd5) 23... Rxc4 $17 {[%emt 0:00:24]} 24. Rc1 {[%emt 0:01:44]} Rd8 {[%emt 0:02:13]} 25. Bg1 {[%emt 0:02:36]} Nb4 {[%emt 0:00:43]} 26. Bxb7 {[%emt 0:01:48]} Qxb7 {[%emt 0:00:04]} ({Inferior is} 26... Kxb7 27. Qf3+ Qc6 28. Qe2 $15) 27. Na4 {[%emt 0:02:56] [#]} (27. Rcd1 $17 {was necessary.}) 27... Rxc1 $1 $19 {[%emt 0:01:57]} 28. Rxc1 {[%emt 0:00:04]} Nd3 {[%emt 0:00:07]} ({Stronger than} 28... Nxa2 29. Nxc5 Bxc5 30. Rxc5 $11) 29. Rc4 {[%emt 0:04:31]} (29. Rc3 {was called for.} Qe4 30. Qg3) 29... Qb5 {[%emt 0:00:41]} ({Weaker is} 29... Qd5 30. Rc2 $17) 30. Re4 {[%emt 0:00:53] [#]} Nf2+ $1 {[%emt 0:05:29][%mdl 512]} 31. Bxf2 {[%emt 0:00:05] Qf3 is the strong threat.} Rd1+ {[%emt 0:00:03]} 32. Re1 $2 {[%emt 0:03:34]} (32. Bg1 $19 Rxg1+ 33. Kxg1 Qb1+ 34. Kf2 Qxe4 35. Nc3 Qxf4+ 36. Qf3 Qd4+ 37. Kf1 Qxe5 38. Qxf7 Qf5+ 39. Qxf5 gxf5 40. Ke2) 32... Rxe1+ {[%emt 0:43:57] Weighted Error Value: White=0.53/Black=0.10 (very precise)} 0-1

[Event "Israel-ch Semi-final 2022"]
[Site "Ramat Gan"]
[Date "2022.05.30"]
[Round "4.6"]
[White "Shteiman, Yuval"]
[Black "Poleg, Matan"]
[Result "0-1"]
[ECO "B44"]
[WhiteElo "1984"]
[BlackElo "2225"]
[Annotator "TA"]
[PlyCount "76"]
[EventDate "2022.05.09"]
[EventType "swiss"]
[EventCountry "ISR"]
[SourceTitle "playchess.com"]
[Source "ChessBase"]
[SourceQuality "1"]
[TimeControl "40/5400+30:1800+30"]

{[%evp 17,75,7,7,0,5,-4,4,-11,-10,-18,18,-9,-8,-16,-20,-17,0,-3,-11,-22,-12,-14,-8,-25,0,-44,-13,-142,-134,-172,-182,-237,-277,-276,-272,-275,-259,-367,-372,-358,-308,-581,-372,-353,-350,-344,-350,-529,-490,-476,-425,-761,-746,-5373,-5373,-29991,-29985,-29996,-29997,-29999]} 1. e4 {[%emt 0:04:58]} c5 {[%emt 0:01:17]} 2. Nf3 {[%emt 0:00:06]} e6 {[%emt 0:00:14]} 3. d4 {[%emt 0:00:23]} cxd4 {[%emt 0:00:08]} 4. Nxd4 {[%emt 0:00:04]} Nc6 {[%emt 0:00:20]} 5. c4 {[%emt 0:02:03]} Nf6 {[%emt 0:00:14]} 6. Nc3 {[%emt 0:00:44]} Bb4 {[%emt 0:00:53]} 7. Nxc6 {[%emt 0:03:03]} bxc6 {[%emt 0:00:08]} 8. Bd3 {[%emt 0:01:33]} e5 {[%emt 0:01:02]} 9. O-O {[%emt 0:04:00]} O-O {[%emt 0:00:11]} 10. Bd2 {[%emt 0:04:24] 10.h3 is setting a new trend. B44: Sicilian: Taimanov: 5 Nb5.} d6 {[%emt 0:05:15]} 11. Qe2 {[%emt 0:02:52]} Re8 {[%emt 0:01:44] [#]} 12. a3 $146 {[%emt 0:08:46] The position is equal.} ({Predecessor:} 12. Rfd1 Rb8 13. h3 Bc5 14. Rab1 a5 15. Na4 Bd4 16. Qe1 Nh5 17. Be2 Qh4 18. Bxh5 Qxh5 {0-1 (42) Bartel,M (2274)-Kriebel,T (2519) Warsaw 2020}) 12... Bc5 {[%emt 0:00:25]} 13. h3 {[%emt 0:04:24]} Bb7 {[%emt 0:03:45]} 14. Rfe1 {[%emt 0:03:38]} Bd4 {[%emt 0:02:25]} 15. Rad1 {[%emt 0:03:49]} a5 {[%emt 0:04:49]} 16. Be3 {[%emt 0:10:55]} Nd7 {[%emt 0:01:27][%cal Bf6d7,Bd7f8,Bf8e6,Be6c5][%mdl 32]} 17. Bc2 {[%emt 0:03:39]} c5 {[%emt 0:04:23]} 18. Rb1 {[%emt 0:09:38]} Nf8 {[%emt 0:02:51]} 19. Qd3 {[%emt 0:03:44]} Ne6 {[%emt 0:03:11]} 20. Nd5 {[%emt 0:01:51]} a4 {[%emt 0:03:25]} 21. Kh1 {[%emt 0:01:55]} Bc6 {[%emt 0:01:01]} 22. Bxd4 {[%emt 0:05:14] White is now going downhill.} (22. b4 $11) 22... cxd4 $17 {[%emt 0:00:31]} 23. Qg3 {[%emt 0:01:32]} Bxd5 {[%emt 0:03:45]} 24. exd5 {[%emt 0:00:27]} (24. cxd5 $142 Nc5 25. Red1) 24... Nc5 $19 {[%emt 0:00:15]} 25. Red1 {[%emt 0:05:46]} Qf6 {[%emt 0:01:00]} 26. f3 {[%emt 0:01:21]} g6 {[%emt 0:00:13]} 27. Qf2 {[%emt 0:02:09]} (27. h4 $142) 27... Rab8 {[%emt 0:01:51]} 28. Rd2 {[%emt 0:00:43]} Re7 {[%emt 0:00:44]} 29. f4 $2 {[%emt 0:01:07]} (29. Be4) 29... exf4 {[%emt 0:00:09] Hoping for ...Re3.} 30. Rxd4 {[%emt 0:00:37] [#]} Re2 $3 {[%emt 0:00:51][%mdl 512]} 31. Qxe2 {[%emt 0:00:34]} Qxd4 {[%emt 0:00:02]} 32. Qe7 {[%emt 0:00:40]} (32. Qe1 {might work better.}) 32... Qxc4 {[%emt 0:05:33]} 33. Qxd6 {[%emt 0:01:03]} Re8 {[%emt 0:00:01]} 34. Qc6 {[%emt 0:01:21]} (34. Bxa4 $142 Nxa4 35. Qb4 Qxb4 36. axb4) 34... Re2 {[%emt 0:02:37] [#] And now ...f3 would win.} ({Inferior is} 34... Rd8 35. Qf6 Re8 36. Qc3 Qxd5 37. Rd1 $19) 35. Bxa4 {[%emt 0:01:18]} f3 {[%emt 0:00:23]} 36. gxf3 {[%emt 0:00:42]} Qf4 {[%emt 0:51:27][%csl Ge2][%cal Rf4h2] Black mates.} 37. Qc8+ {[%emt 0:00:48]} Kg7 {[%emt 0:00:00][%csl Ge2][%cal Rf4h2]} 38. d6 {[%emt 0:00:13]} Qh2# {[%emt 0:00:00] Weighted Error Value: White=0.85/Black=0.14 (very precise)} 0-1